fUSD/lending_fUSD_20250929
["ID","MTS","AMOUNT","RATE_DAILY","PERIOD"]
[388352759,1759115457957,-152.0,0.00018595,8]
[388352761,1759115457966,-162.82646079,0.00018595,2]
[388352763,1759115457976,-231.0,0.00018595,2]
[388352765,1759115457986,-162.82646079,0.00018599,2]
[388352767,1759115457996,-300.0,0.00018599,2]
[388352768,1759115458006,-394.153594,0.00018599,4]
[388352769,1759115458016,-1167.438191,0.00018599,4]
[388352770,1759115458026,-1153.037717,0.00018599,4]
[388352771,1759115458035,-300.0,0.00018599,2]
[388352772,1759115458046,-666.0,0.00018599,2]
[388352773,1759115458055,-300.0,0.00018599,2]
[388352774,1759115458065,-349377.73546491,0.00018599,2]
[388352775,1759115458075,-31382.41665396,0.000186,2]
[388352776,1759115458084,-151.0,0.000186,2]
[388352777,1759115458093,-151.0,0.000186,2]
[388352778,1759115458105,-196.567932,0.000186,2]
[388352779,1759115458115,-196.567932,0.000186,2]
[388352780,1759115458125,-196.567932,0.000186,2]
[388352781,1759115458136,-196.567932,0.000186,2]
[388352782,1759115458146,-151.0,0.000186,2]
[388352783,1759115458157,-151.0,0.000186,2]
[388352784,1759115458167,-151.0,0.000186,2]
[388352785,1759115458177,-151.0,0.000186,2]
[388352786,1759115458187,-162.150489,0.000186,2]
[388352787,1759115458197,-151.0,0.000186,2]
[388352788,1759115458207,-151.0,0.000186,2]
[388352789,1759115458218,-151.0,0.000186,2]
[388352790,1759115458227,-151.0,0.000186,2]
[388352791,1759115458237,-151.0,0.000186,2]
[388352792,1759115458248,-151.0,0.000186,2]
[388352793,1759115458257,-420.693641,0.000186,2]
[388352794,1759115458267,-420.693641,0.000186,2]
[388352795,1759115458277,-2071.100836,0.000186,2]
[388352796,1759115458287,-2071.100836,0.000186,2]
[388352797,1759115458298,-420.693641,0.000186,2]
[388352798,1759115458308,-420.693641,0.000186,2]
[388352799,1759115458317,-2071.100836,0.000186,2]
[388352800,1759115458327,-420.693641,0.000186,2]
[388352801,1759115458337,-2071.100836,0.000186,2]
[388352802,1759115458347,-420.693641,0.000186,2]
[388352803,1759115458357,-2071.100836,0.000186,2]
[388352804,1759115458367,-420.693641,0.000186,2]
[388352805,1759115458377,-2071.100836,0.000186,2]
[388352806,1759115458386,-2071.100836,0.000186,2]
[388352807,1759115458396,-2071.100832,0.000186,2]
[388352808,1759115458406,-420.693633,0.000186,2]
[388352809,1759115458416,-394.153594,0.000186,6]
[388352810,1759115458426,-151.0,0.000186,2]
[388352811,1759115458436,-202.799742,0.000186,2]
[388352812,1759115458446,-151.0,0.000186,2]
[388352813,1759115458457,-202.799742,0.000186,2]
[388352814,1759115458467,-202.799742,0.000186,2]
[388352815,1759115458477,-1167.438191,0.000186,6]
[388352816,1759115458487,-202.799733,0.000186,2]
[388352817,1759115458496,-1153.037717,0.000186,6]
[388352818,1759115458506,-406.043013,0.000186,2]
[388352819,1759115458517,-406.043013,0.000186,2]
[388352820,1759115458527,-151.0,0.000186,2]
[388352821,1759115458537,-406.043013,0.000186,2]
[388352822,1759115458546,-406.043011,0.000186,2]
[388352823,1759115458556,-151.0,0.000186,2]
[388352824,1759115458565,-151.0,0.000186,2]
[388352825,1759115458575,-151.0,0.000186,2]
[388352826,1759115458585,-151.0,0.000186,2]
[388352827,1759115458595,-162.278206,0.000186,2]
[388352828,1759115458604,-162.278206,0.000186,2]
[388352829,1759115458615,-162.278206,0.000186,2]
[388352830,1759115458625,-162.278212,0.000186,2]
[388352831,1759115458634,-151.0,0.000186,2]
[388352832,1759115458644,-184.895228,0.000186,2]
[388352833,1759115458653,-372.552961,0.000186,2]
[388352834,1759115458663,-372.552961,0.000186,2]
[388352835,1759115458672,-151.0,0.000186,2]
[388352836,1759115458682,-372.552961,0.000186,2]
[388352837,1759115458692,-372.55295614,0.000186,2]
[388352838,1759115458702,-294.155635,0.000186,2]
[388352839,1759115458711,-151.0,0.000186,2]
[388352840,1759115458721,-151.0,0.000186,2]
[388352841,1759115458730,-151.0,0.000186,2]
[388352842,1759115458739,-151.0,0.000186,2]
[388352843,1759115458749,-240.728178,0.000186,2]
[388352844,1759115458759,-240.728178,0.000186,2]
[388352845,1759115458769,-240.728178,0.000186,2]
[388352846,1759115458778,-240.728169,0.000186,2]
[388352847,1759115458787,-177.322574,0.000186,2]
[388352849,1759115458797,-151.0,0.000186,2]
[388352850,1759115458807,-212.823951,0.000186,2]
[388352851,1759115458817,-151.0,0.000186,2]
[388352852,1759115458829,-151.0,0.000186,2]
[388352853,1759115458839,-151.0,0.000186,2]
[388352854,1759115458849,-151.0,0.000186,2]
[388352855,1759115458859,-151.0,0.000186,2]
[388352856,1759115458869,-151.0,0.000186,2]
[388352857,1759115458879,-403.673954,0.000186,2]
[388352858,1759115458889,-151.0,0.000186,2]
[388352859,1759115458898,-403.673954,0.000186,2]
[388352860,1759115458910,-403.673954,0.000186,2]
[388352861,1759115458921,-403.673958,0.000186,2]
[388352862,1759115458931,-376.764623,0.000186,2]
[388352863,1759115458941,-376.764623,0.000186,2]
[388352864,1759115458950,-376.764623,0.000186,2]
[388352865,1759115458960,-376.764617,0.000186,2]
[388352866,1759115458970,-151.0,0.000186,2]
[388352867,1759115458979,-151.0,0.000186,2]
[388352868,1759115458989,-258.977422,0.000186,2]
[388352869,1759115459001,-151.0,0.000186,2]
[388352870,1759115459011,-151.0,0.000186,2]
[388352871,1759115459021,-293.853897,0.000186,2]
[388352872,1759115459030,-151.0,0.000186,2]
[388352873,1759115459040,-151.0,0.000186,2]
[388352874,1759115459049,-151.0,0.000186,2]
[388352875,1759115459059,-151.0,0.000186,2]
[388352876,1759115459069,-171.948824,0.000186,2]
[388352877,1759115459080,-151.0,0.000186,2]
[388352878,1759115459089,-171.948824,0.000186,2]
[388352879,1759115459099,-171.948824,0.000186,2]
[388352880,1759115459109,-354.877316,0.000186,2]
[388352881,1759115459118,-171.948825,0.000186,2]
[388352882,1759115459128,-298.094505,0.000186,2]
[388352883,1759115459138,-354.877316,0.000186,2]
[388352884,1759115459148,-298.094505,0.000186,2]
[388352885,1759115459157,-354.877316,0.000186,2]
[388352886,1759115459167,-298.094505,0.000186,2]
[388352887,1759115459177,-354.877311,0.000186,2]
[388352888,1759115459186,-298.09451,0.000186,2]
[388352889,1759115459287,-151.0,0.000186,2]
[388352890,1759115459297,-151.0,0.000186,2]
[388352891,1759115459307,-151.0,0.000186,2]
[388352892,1759115459316,-557.222882,0.000186,2]
[388352893,1759115459326,-557.222882,0.000186,2]
[388352894,1759115459335,-557.222882,0.000186,2]
[388352895,1759115459345,-557.222884,0.000186,2]
[388352896,1759115459354,-12000.0,0.000186,2]
[388352897,1759115459363,-822850.80933264,0.000186,2]
[388352898,1759115459372,-12000.0,0.000186,2]
[388352899,1759115459382,-12000.0,0.000186,2]
[388352900,1759115459392,-151.0,0.000186,2]
[388352901,1759115459401,-181.906958,0.000186,2]
[388352902,1759115459410,-12000.0,0.000186,2]
[388352903,1759115459419,-181.906958,0.000186,2]
[388352904,1759115459429,-638.51723,0.000186,2]
[388352905,1759115459438,-181.906958,0.000186,2]
[388352906,1759115459447,-638.51723,0.000186,2]
[388352907,1759115459456,-153.520224,0.000186,2]
[388352908,1759115459466,-181.906958,0.000186,2]
[388352909,1759115459475,-638.51723,0.000186,2]
[388352910,1759115459485,-391.869974,0.000186,2]
[388352911,1759115459494,-220.372922,0.000186,2]
[388352912,1759115459503,-638.51723,0.000186,2]
[388352913,1759115459512,-391.869974,0.000186,2]
[388352914,1759115459522,-194.63488,0.000186,2]
[388352915,1759115459531,-220.372922,0.000186,2]
[388352916,1759115459542,-151.0,0.000186,2]
[388352917,1759115459552,-391.869974,0.000186,2]
[388352918,1759115459561,-194.63488,0.000186,2]
[388352919,1759115459571,-220.372922,0.000186,2]
[388352920,1759115459581,-786.979178,0.000186,2]
[388352921,1759115459590,-151.0,0.000186,2]
[388352922,1759115459599,-391.869974,0.000186,2]
[388352923,1759115459609,-194.63488,0.000186,2]
[388352924,1759115459619,-220.372922,0.000186,2]
[388352925,1759115459628,-786.979178,0.000186,2]
[388352926,1759115459638,-151.0,0.000186,2]
[388352927,1759115459647,-194.63488,0.000186,2]
[388352928,1759115459657,-786.979178,0.000186,2]
[388352929,1759115459666,-151.0,0.000186,2]
[388352930,1759115459676,-151.0,0.000186,2]
[388352931,1759115459685,-786.979178,0.000186,2]
[388352932,1759115459695,-354.805264,0.000186,2]
[388352933,1759115459703,-354.805264,0.000186,2]
[388352934,1759115459714,-255.094176,0.000186,2]
[388352935,1759115459723,-354.805264,0.000186,2]
[388352936,1759115459732,-255.094176,0.000186,2]
[388352937,1759115459742,-354.805264,0.000186,2]
[388352938,1759115459751,-255.094176,0.000186,2]
[388352939,1759115459761,-151.0,0.000186,2]
[388352940,1759115459771,-151.0,0.000186,2]
[388352941,1759115459780,-255.094176,0.000186,2]
[388352942,1759115459789,-5686.34425826,0.000186,2]
[388352943,1759115459799,-1833.676473,0.000186,2]
[388352944,1759115459808,-1833.676473,0.000186,2]
[388352945,1759115459817,-1833.676473,0.000186,2]
[388352946,1759115459828,-1833.676473,0.000186,2]
[388352947,1759115459839,-164.492136,0.000186,2]
[388352948,1759115459849,-151.0,0.000186,2]
[388352949,1759115459858,-151.0,0.000186,2]
[388352950,1759115459868,-164.492136,0.000186,2]
[388352951,1759115459878,-151.0,0.000186,2]
[388352952,1759115459887,-164.492136,0.000186,2]
[388352953,1759115459897,-164.492136,0.000186,2]
[388352954,1759115459907,-154.630285,0.000186,2]
[388352955,1759115459918,-2428.078269,0.000186,2]
[388352956,1759115459927,-151.0,0.000186,2]
[388352957,1759115459936,-2428.078269,0.000186,2]
[388352958,1759115459947,-241.688721,0.000186,2]
[388352959,1759115459957,-2428.078269,0.000186,2]
[388352960,1759115459966,-241.688721,0.000186,2]
[388352961,1759115459975,-151.0,0.000186,2]
[388352962,1759115459985,-151.0,0.000186,2]
[388352963,1759115459994,-2428.078269,0.000186,2]
[388352964,1759115460004,-241.688721,0.000186,2]
[388352965,1759115460014,-1087.322664,0.000186,2]
[388352966,1759115460023,-151.0,0.000186,2]
[388352967,1759115460033,-151.0,0.000186,2]
[388352968,1759115460043,-241.688721,0.000186,2]
[388352969,1759115460053,-153.804112,0.000186,2]
[388352970,1759115460064,-151.0,0.000186,2]
[388352971,1759115460074,-151.0,0.000186,2]
[388352972,1759115460083,-1087.322664,0.000186,2]
[388352973,1759115460093,-1087.322664,0.000186,2]
[388352974,1759115460102,-151.0,0.000186,2]
[388352975,1759115460111,-151.0,0.000186,2]
[388352976,1759115460121,-1087.322664,0.000186,2]
[388352977,1759115460130,-151.0,0.000186,2]
[388352978,1759115460139,-151.0,0.000186,2]
[388352979,1759115460149,-151.0,0.000186,2]
[388352980,1759115460158,-151.0,0.000186,2]
[388352981,1759115460167,-166.842008,0.000186,2]
[388352982,1759115460177,-151.0,0.000186,2]
[388352983,1759115460186,-166.842008,0.000186,2]
[388352984,1759115460196,-1415.94465988,0.000186,2]
[388352985,1759115460206,-166.842008,0.000186,2]
[388352986,1759115460215,-166.842008,0.000186,2]
[388352987,1759115460225,-375.003202,0.000186,2]
[388352988,1759115460235,-375.003202,0.000186,2]
[388352989,1759115460245,-375.003202,0.000186,2]
[388352990,1759115460254,-485.92258842,0.000186,2]
[388352991,1759115460263,-375.003202,0.000186,2]
[388352992,1759115460272,-821.697529,0.000186,2]
[388352993,1759115460282,-151.0,0.000186,2]
[388352994,1759115460292,-821.697529,0.000186,2]
[388352995,1759115460300,-151.0,0.000186,2]
[388352996,1759115460309,-821.697529,0.000186,2]
[388352997,1759115460319,-151.0,0.000186,2]
[388352998,1759115460328,-821.697529,0.000186,2]
[388352999,1759115460338,-532.735755,0.000186,2]
[388353000,1759115460347,-532.735755,0.000186,2]
[388353001,1759115460356,-532.735755,0.000186,2]
[388353002,1759115460365,-532.735755,0.000186,2]
[388353003,1759115460376,-532.735755,0.000186,2]
[388353004,1759115460386,-532.735755,0.000186,2]
[388353005,1759115460395,-532.735755,0.000186,2]
[388353006,1759115460404,-532.735755,0.000186,2]
[388353007,1759115460414,-151.0,0.000186,2]
[388353008,1759115460423,-151.0,0.000186,2]
[388353009,1759115460432,-255.980663,0.000186,2]
[388353010,1759115460442,-255.980663,0.000186,2]
[388353011,1759115460451,-255.980663,0.000186,2]
[388353012,1759115460461,-255.980663,0.000186,2]
[388353013,1759115460471,-255.980663,0.000186,2]
[388353014,1759115460480,-255.980663,0.000186,2]
[388353015,1759115460490,-1073.263078,0.000186,2]
[388353016,1759115460500,-1073.263078,0.000186,2]
[388353017,1759115460509,-624.274003,0.000186,2]
[388353018,1759115460518,-255.980663,0.000186,2]
[388353019,1759115460527,-255.980663,0.000186,2]
[388353020,1759115460537,-624.274003,0.000186,2]
[388353021,1759115460546,-1073.263078,0.000186,2]
[388353022,1759115460556,-1606.313057,0.000186,2]
[388353023,1759115460565,-1073.263078,0.000186,2]
[388353024,1759115460574,-151.0,0.000186,2]
[388353025,1759115460584,-1606.313057,0.000186,2]
[388353026,1759115460593,-624.274003,0.000186,2]
[388353027,1759115460603,-151.0,0.000186,2]
[388353028,1759115460612,-624.274003,0.000186,2]
[388353029,1759115460621,-1500.0,0.000186,6]
[388353030,1759115460630,-674.48908283,0.00018602,2]
[388353031,1759115460640,-32724.0,0.00018603,2]
[388353032,1759115460650,-151.0,0.00018603,2]
[388353033,1759115460659,-151.0,0.00018603,2]
[388353034,1759115460669,-151.0,0.00018603,2]
[388353035,1759115460678,-151.0,0.00018603,2]
[388353036,1759115460688,-151.0,0.00018603,2]
[388353037,1759115460697,-167.680314,0.00018603,2]
[388353038,1759115460707,-262.22488854,0.00018615,2]
[388353039,1759115460716,-160.0,0.0001863,2]
[388353040,1759115460726,-160.0,0.0001863,2]
[388353041,1759115460736,-160.0,0.0001863,2]
[388353042,1759115460745,-160.0,0.0001863,2]
[388353043,1759115460754,-160.0,0.0001863,2]
[388353044,1759115460764,-160.0,0.0001863,2]
[388353045,1759115460773,-160.0,0.0001863,2]
[388353046,1759115460782,-160.0,0.0001863,2]
[388353047,1759115460791,-160.0,0.0001863,2]
[388353048,1759115460801,-160.0,0.0001863,2]
[388353049,1759115460810,-160.0,0.0001863,2]
[388353050,1759115460819,-160.0,0.0001863,2]
[388353051,1759115460832,-160.0,0.0001863,2]
[388353052,1759115460841,-160.0,0.0001863,2]
[388353053,1759115460850,-160.0,0.0001863,2]
[388353054,1759115460860,-160.0,0.0001863,2]
[388353055,1759115460871,-160.0,0.0001863,2]
[388353056,1759115460880,-160.0,0.0001863,2]
[388353057,1759115460889,-160.0,0.0001863,2]
[388353058,1759115460899,-160.0,0.0001863,2]
[388353059,1759115460910,-160.0,0.0001863,2]
[388353060,1759115460920,-160.0,0.0001863,2]
[388353061,1759115460929,-160.0,0.0001863,2]
[388353062,1759115460938,-160.0,0.0001863,2]
[388353063,1759115460949,-160.0,0.0001863,2]
[388353064,1759115460959,-160.0,0.0001863,2]
[388353065,1759115460968,-160.0,0.0001863,2]
[388353066,1759115460978,-160.0,0.0001863,2]
[388353067,1759115460987,-160.0,0.0001863,2]
[388353068,1759115460996,-160.0,0.0001863,2]
[388353069,1759115461006,-160.0,0.0001863,2]
[388353070,1759115461016,-160.0,0.0001863,2]
[388353071,1759115461025,-160.0,0.0001863,2]
[388353072,1759115461034,-160.0,0.0001863,2]
[388353073,1759115461043,-160.0,0.0001863,2]
[388353074,1759115461053,-160.0,0.0001863,2]
[388353075,1759115461062,-160.0,0.0001863,2]
[388353076,1759115461072,-160.0,0.0001863,2]
[388353077,1759115461081,-160.0,0.0001863,2]
[388353078,1759115461090,-160.0,0.0001863,2]
[388353079,1759115461100,-160.0,0.0001863,2]
[388353080,1759115461110,-160.0,0.0001863,2]
[388353081,1759115461119,-160.0,0.0001863,2]
[388353082,1759115461129,-160.0,0.0001863,2]
[388353083,1759115461138,-160.0,0.0001863,2]
[388353084,1759115461147,-160.0,0.0001863,2]
[388353085,1759115461157,-160.0,0.0001863,2]
[388353086,1759115461166,-160.0,0.0001863,2]
[388353087,1759115461175,-160.0,0.0001863,2]
[388353088,1759115461184,-160.0,0.0001863,2]
[388353089,1759115461193,-160.0,0.0001863,2]
[388353090,1759115461203,-160.0,0.0001863,2]
[388353091,1759115461212,-160.0,0.0001863,2]
[388353092,1759115461221,-160.0,0.0001863,2]
[388353093,1759115461231,-160.0,0.0001863,2]
[388353094,1759115461241,-160.0,0.0001863,2]
[388353095,1759115461251,-160.0,0.0001863,2]
[388353096,1759115461261,-160.0,0.0001863,2]
[388353097,1759115461271,-160.0,0.0001863,2]
[388353098,1759115461280,-160.0,0.0001863,2]
[388353099,1759115461289,-160.0,0.0001863,2]
[388353100,1759115461299,-160.0,0.0001863,2]
[388353101,1759115461309,-160.0,0.0001863,2]
[388353102,1759115461318,-160.0,0.0001863,2]
[388353103,1759115461328,-160.0,0.0001863,2]
[388353104,1759115461337,-160.0,0.0001863,2]
[388353105,1759115461347,-160.0,0.0001863,2]
[388353106,1759115461357,-160.0,0.0001863,2]
[388353107,1759115461366,-160.0,0.0001863,2]
[388353108,1759115461375,-160.0,0.0001863,2]
[388353109,1759115461385,-160.0,0.0001863,2]
[388353110,1759115461394,-160.0,0.0001863,2]
[388353111,1759115461403,-160.0,0.0001863,2]
[388353112,1759115461412,-160.0,0.0001863,2]
[388353113,1759115461422,-160.0,0.0001863,2]
[388353114,1759115461432,-160.0,0.0001863,2]
[388353115,1759115461442,-160.0,0.0001863,2]
[388353116,1759115461451,-160.0,0.0001863,2]
[388353117,1759115461461,-160.0,0.0001863,2]
[388353118,1759115461470,-160.0,0.0001863,2]
[388353119,1759115461480,-160.0,0.0001863,2]
[388353120,1759115461489,-160.0,0.0001863,2]
[388353121,1759115461498,-160.0,0.0001863,2]
[388353122,1759115461508,-160.0,0.0001863,2]
[388353123,1759115461517,-160.0,0.0001863,2]
[388353124,1759115461527,-160.0,0.0001863,2]
[388353125,1759115461536,-160.0,0.0001863,2]
[388353126,1759115461545,-160.0,0.0001863,2]
[388353127,1759115461554,-160.0,0.0001863,2]
[388353128,1759115461563,-160.0,0.0001863,2]
[388353129,1759115461573,-160.0,0.0001863,2]
[388353130,1759115461582,-160.0,0.0001863,2]
[388353131,1759115461592,-160.0,0.0001863,2]
[388353132,1759115461602,-160.0,0.0001863,2]
[388353133,1759115461611,-160.0,0.0001863,2]
[388353134,1759115461621,-160.0,0.0001863,2]
[388353135,1759115461632,-160.0,0.0001863,2]
[388353136,1759115461642,-160.0,0.0001863,2]
[388353137,1759115461651,-160.0,0.0001863,2]
[388353138,1759115461661,-160.0,0.0001863,2]
[388353139,1759115461671,-231.0,0.00018633,2]
[388353140,1759115461683,-394.153594,0.00018645,2]
[388353141,1759115461693,-1167.438191,0.00018645,2]
[388353142,1759115461703,-1153.037717,0.00018645,2]
[388353143,1759115461714,-157.4,0.00018649,2]
[388353144,1759115461723,-394.153594,0.00018649,4]
[388353145,1759115461733,-1167.438191,0.00018649,4]
[388353146,1759115461742,-1153.037717,0.00018649,4]
[388353147,1759115461751,-394.153594,0.0001865,6]
[388353148,1759115461761,-1167.438191,0.0001865,6]
[388353149,1759115461770,-1153.037717,0.0001865,6]
[388353150,1759115461779,-231.0,0.00018671,2]
[388353151,1759115461789,-222.9822244,0.00018673,2]
[388353152,1759115461799,-184.25783007,0.0001869,2]
[388353153,1759115461807,-793.74,0.00018693,2]
[388353154,1759115461817,-999.0,0.00018696,2]
[388353155,1759115461831,-999.0,0.00018696,2]
[388353156,1759115461849,-999.0,0.00018696,2]
[388353157,1759115461860,-659.62891428,0.00018696,2]
[388353158,1759115461871,-24104.10434024,0.00018697,2]
[388353159,1759115461880,-150.0,0.00018699,2]
[388353160,1759115461890,-300.0,0.00018699,2]
[388353161,1759115461901,-666.0,0.00018699,2]
[388353162,1759115461911,-161.352417,0.00018699,4]
[388353163,1759115461920,-155.835758,0.00018699,4]
[388353164,1759115461930,-394.153594,0.00018699,4]
[388353165,1759115461940,-1167.438191,0.00018699,4]
[388353166,1759115461949,-1153.037717,0.00018699,4]
[388353167,1759115461959,-300.0,0.00018699,2]
[388353168,1759115461969,-2059931.28577518,0.000187,3]
[388353169,1759115461978,-441685.5690573,0.000187,3]
[388353170,1759115461988,-150.0,0.000187,2]
[388353171,1759115461998,-154.91431165,0.000187,2]
[388353172,1759115462007,-1251.90358659,0.000187,2]
[388353173,1759115462017,-150.0,0.000187,2]
[388353174,1759115462027,-939.79659446,0.000187,2]
[388353175,1759115462038,-19514.09257417,0.000187,3]
[388353176,1759115462048,-178.024121,0.000187,2]
[388353177,1759115462058,-151.0,0.000187,2]
[388353178,1759115462068,-151.0,0.000187,2]
[388353179,1759115462078,-151.0,0.000187,2]
[388353180,1759115462088,-151.0,0.000187,2]
[388353181,1759115462098,-196.567932,0.000187,2]
[388353182,1759115462108,-196.567932,0.000187,2]
[388353183,1759115462118,-196.567932,0.000187,2]
[388353184,1759115462128,-196.567932,0.000187,2]
[388353185,1759115462138,-196.567932,0.000187,2]
[388353186,1759115462148,-196.567932,0.000187,2]
[388353187,1759115462158,-196.567932,0.000187,2]
[388353188,1759115462168,-196.567932,0.000187,2]
[388353189,1759115462178,-151.0,0.000187,2]
[388353190,1759115462188,-151.0,0.000187,2]
[388353191,1759115462197,-151.0,0.000187,2]
[388353192,1759115462207,-151.0,0.000187,2]
[388353193,1759115462217,-151.0,0.000187,2]
[388353194,1759115462227,-233.780603,0.000187,2]
[388353195,1759115462236,-151.0,0.000187,2]
[388353196,1759115462246,-151.0,0.000187,2]
[388353197,1759115462257,-232.523383,0.000187,2]
[388353198,1759115462267,-151.0,0.000187,2]
[388353199,1759115462277,-264.761462,0.000187,2]
[388353200,1759115462289,-151.0,0.000187,2]
[388353201,1759115462298,-151.0,0.000187,2]
[388353202,1759115462308,-151.0,0.000187,2]
[388353203,1759115462318,-151.0,0.000187,2]
[388353204,1759115462328,-151.0,0.000187,2]
[388353205,1759115462337,-151.0,0.000187,2]
[388353206,1759115462346,-151.0,0.000187,2]
[388353207,1759115462356,-151.0,0.000187,2]
[388353208,1759115462366,-394.153594,0.000187,6]
[388353209,1759115462376,-1167.438191,0.000187,6]
[388353210,1759115462385,-1153.037717,0.000187,6]
[388353211,1759115462394,-300.0,0.000187,6]
[388353212,1759115462404,-151.0,0.000187,2]
[388353213,1759115462418,-12000.0,0.000187,2]
[388353214,1759115462431,-12000.0,0.000187,2]
[388353215,1759115462439,-12000.0,0.000187,2]
[388353216,1759115462450,-151.0,0.000187,2]
[388353217,1759115462460,-181.906958,0.000187,2]
[388353218,1759115462470,-12000.0,0.000187,2]
[388353219,1759115462479,-181.906958,0.000187,2]
[388353220,1759115462488,-638.51723,0.000187,2]
[388353221,1759115462498,-181.906958,0.000187,2]
[388353222,1759115462508,-638.51723,0.000187,2]
[388353223,1759115462517,-181.906967,0.000187,2]
[388353224,1759115462526,-638.51723,0.000187,2]
[388353225,1759115462536,-391.869974,0.000187,2]
[388353226,1759115462546,-220.372922,0.000187,2]
[388353227,1759115462555,-638.517226,0.000187,2]
[388353228,1759115462565,-391.869974,0.000187,2]
[388353229,1759115462575,-194.63488,0.000187,2]
[388353230,1759115462585,-220.372922,0.000187,2]
[388353231,1759115462595,-151.0,0.000187,2]
[388353232,1759115462605,-391.869974,0.000187,2]
[388353233,1759115462615,-194.63488,0.000187,2]
[388353234,1759115462625,-220.372922,0.000187,2]
[388353235,1759115462635,-786.979178,0.000187,2]
[388353236,1759115462645,-151.0,0.000187,2]
[388353237,1759115462655,-391.869971,0.000187,2]
[388353238,1759115462665,-194.63488,0.000187,2]
[388353239,1759115462675,-220.372931,0.000187,2]
[388353240,1759115462685,-786.979178,0.000187,2]
[388353241,1759115462695,-151.0,0.000187,2]
[388353242,1759115462706,-194.634885,0.000187,2]
[388353243,1759115462716,-786.979178,0.000187,2]
[388353244,1759115462726,-152.035471,0.000187,2]
[388353245,1759115462736,-152.424343,0.000187,2]
[388353246,1759115462746,-786.979173,0.000187,2]
[388353247,1759115462756,-354.805264,0.000187,2]
[388353248,1759115462765,-354.805264,0.000187,2]
[388353249,1759115462775,-255.094176,0.000187,2]
[388353250,1759115462785,-354.805264,0.000187,2]
[388353251,1759115462796,-255.094176,0.000187,2]
[388353252,1759115462806,-354.805262,0.000187,2]
[388353253,1759115462816,-255.094176,0.000187,2]
[388353254,1759115462827,-151.0,0.000187,2]
[388353255,1759115462839,-151.0,0.000187,2]
[388353256,1759115462849,-255.094185,0.000187,2]
[388353257,1759115462860,-1833.676473,0.000187,2]
[388353258,1759115462871,-1833.676473,0.000187,2]
[388353259,1759115462881,-1833.676473,0.000187,2]
[388353260,1759115462891,-1833.67647652,0.000187,2]
[388353261,1759115462902,-164.492136,0.000187,2]
[388353262,1759115462912,-151.0,0.000187,2]
[388353263,1759115462922,-151.0,0.000187,2]